[Event "Late-Titled-Tuesday-Blitz-August-29-2023"]
[Site "Chess.com"]
[Date "2023.08.29"]
[Round "1"]
[White "misterlamine"]
[Black "Fonsofan"]
[Result "0-1"]
[WhiteElo "2374"]
[BlackElo "2681"]
[TimeControl "180+1"]
[EndTime "14:09:27 PDT"]
[Termination "Fonsofan won on time"]

1. d4 {[%clk 0:03:00.9]} 1... Nf6 {[%clk 0:02:56]} 2. c4 {[%clk 0:03:00.3]} 2...
d6 {[%clk 0:02:54]} 3. Nf3 {[%clk 0:02:59.2]} 3... g6 {[%clk 0:02:51.4]} 4. Nc3
{[%clk 0:02:59]} 4... Bf5 {[%clk 0:02:51]} 5. Qb3 {[%clk 0:02:56.8]} 5... Qc8
{[%clk 0:02:48.7]} 6. Bg5 {[%clk 0:02:56]} 6... Bg7 {[%clk 0:02:47.2]} 7. e3
{[%clk 0:02:55.5]} 7... O-O {[%clk 0:02:47.1]} 8. Be2 {[%clk 0:02:55.5]} 8...
Nc6 {[%clk 0:02:47.5]} 9. O-O {[%clk 0:02:55.1]} 9... Re8 {[%clk 0:02:46.1]} 10.
Rfe1 {[%clk 0:02:50.1]} 10... h6 {[%clk 0:02:46.2]} 11. Bh4 {[%clk 0:02:48.8]}
11... g5 {[%clk 0:02:46.5]} 12. Bg3 {[%clk 0:02:48.5]} 12... Nh5 {[%clk
0:02:47.1]} 13. e4 {[%clk 0:02:40.6]} 13... Bg4 {[%clk 0:02:42.7]} 14. d5 {[%clk
0:02:35.9]} 14... Bxf3 {[%clk 0:02:41.2]} 15. Bxf3 {[%clk 0:02:34.1]} 15... Nd4
{[%clk 0:02:41.3]} 16. Qd1 {[%clk 0:02:34]} 16... Nxg3 {[%clk 0:02:40.4]} 17.
hxg3 {[%clk 0:02:32.1]} 17... c5 {[%clk 0:02:37.8]} 18. dxc6 {[%clk 0:02:26.2]}
18... bxc6 {[%clk 0:02:38.7]} 19. Bg4 {[%clk 0:02:24.4]} 19... Qa6 {[%clk
0:02:34.9]} 20. Qd3 {[%clk 0:02:20.5]} 20... e6 {[%clk 0:02:30.2]} 21. Rad1
{[%clk 0:02:19.4]} 21... Rab8 {[%clk 0:02:28.9]} 22. b3 {[%clk 0:02:16.8]} 22...
Qb6 {[%clk 0:02:23.1]} 23. Ne2 {[%clk 0:02:15.9]} 23... c5 {[%clk 0:02:19.9]}
24. Nc3 {[%clk 0:02:13]} 24... a6 {[%clk 0:02:16.8]} 25. f4 {[%clk 0:02:09.7]}
25... Qd8 {[%clk 0:02:15.8]} 26. f5 {[%clk 0:02:04.6]} 26... Be5 {[%clk
0:02:06.9]} 27. Rf1 {[%clk 0:02:01.7]} 27... Rb7 {[%clk 0:02:06.2]} 28. Bh5
{[%clk 0:01:59.6]} 28... Rf8 {[%clk 0:02:02.2]} 29. Rf2 {[%clk 0:01:33.2]} 29...
Qa5 {[%clk 0:01:51]} 30. Rdf1 {[%clk 0:01:28.9]} 30... Qxc3 {[%clk 0:01:37.6]}
31. Qxc3 {[%clk 0:01:25.9]} 31... Ne2+ {[%clk 0:01:38]} 32. Rxe2 {[%clk
0:01:24.9]} 32... Bxc3 {[%clk 0:01:38.9]} 33. Bg4 {[%clk 0:01:07.4]} 33... exf5
{[%clk 0:01:27.1]} 34. Bxf5 {[%clk 0:01:05]} 34... Be5 {[%clk 0:01:25.7]} 35.
Rf3 {[%clk 0:01:03.6]} 35... a5 {[%clk 0:01:25.8]} 36. Rd3 {[%clk 0:00:51.9]}
36... Ra8 {[%clk 0:01:25.2]} 37. Kf2 {[%clk 0:00:45.8]} 37... a4 {[%clk
0:01:24.8]} 38. Kf3 {[%clk 0:00:45]} 38... Rb4 {[%clk 0:01:23.4]} 39. Kg4 {[%clk
0:00:43]} 39... Rab8 {[%clk 0:01:20.7]} 40. Kh5 {[%clk 0:00:42.2]} 40... Kg7
{[%clk 0:01:18.2]} 41. Ree3 {[%clk 0:00:41.1]} 41... Bd4 {[%clk 0:01:13.1]} 42.
Rf3 {[%clk 0:00:40.8]} 42... R8b7 {[%clk 0:01:07.9]} 43. Bc8 {[%clk 0:00:39]}
43... Re7 {[%clk 0:01:04.1]} 44. Bf5 {[%clk 0:00:36.7]} 44... Ra7 {[%clk
0:01:03.3]} 45. Bc8 {[%clk 0:00:35.2]} 45... axb3 {[%clk 0:01:01.5]} 46. axb3
{[%clk 0:00:36]} 46... Ra1 {[%clk 0:01:02]} 47. Bd7 {[%clk 0:00:34.7]} 47... Be5
{[%clk 0:00:48.8]} 48. Bc6 {[%clk 0:00:33.1]} 48... f6 {[%clk 0:00:37]} 49. Kg4
{[%clk 0:00:31.5]} 49... Rb6 {[%clk 0:00:35.4]} 50. Bd7 {[%clk 0:00:30.4]} 50...
Rb7 {[%clk 0:00:34.4]} 51. Ba4 {[%clk 0:00:25.3]} 51... Re7 {[%clk 0:00:22.6]}
52. Rd2 {[%clk 0:00:19.8]} 52... Kg6 {[%clk 0:00:21.5]} 53. Rf5 {[%clk
0:00:15.4]} 53... h5+ {[%clk 0:00:20.3]} 54. Kf3 {[%clk 0:00:16]} 54... Rf1+
{[%clk 0:00:19.6]} 55. Ke2 {[%clk 0:00:16.4]} 55... Rxf5 {[%clk 0:00:19.7]} 56.
exf5+ {[%clk 0:00:17.3]} 56... Kxf5 {[%clk 0:00:20.6]} 57. Bc6 {[%clk
0:00:17.2]} 57... Bxg3+ {[%clk 0:00:19.9]} 58. Kf3 {[%clk 0:00:16.1]} 58... Bf4
{[%clk 0:00:19.4]} 59. Rd5+ {[%clk 0:00:15.6]} 59... Be5 {[%clk 0:00:19.6]} 60.
Rd2 {[%clk 0:00:13.8]} 60... g4+ {[%clk 0:00:19.9]} 61. Kf2 {[%clk 0:00:12]}
61... Bd4+ {[%clk 0:00:19.6]} 62. Kf1 {[%clk 0:00:11.7]} 62... Kf4 {[%clk
0:00:19.6]} 63. Bd5 {[%clk 0:00:11.6]} 63... h4 {[%clk 0:00:19.2]} 64. Rd3
{[%clk 0:00:11.6]} 64... Ra7 {[%clk 0:00:17.1]} 65. Rd1 {[%clk 0:00:10.6]} 65...
Ra2 {[%clk 0:00:17.3]} 66. Re1 {[%clk 0:00:08.9]} 66... Kg3 {[%clk 0:00:17.2]}
67. Re2 {[%clk 0:00:07.2]} 67... Ra1+ {[%clk 0:00:17.1]} 68. Re1 {[%clk
0:00:06.8]} 68... Ra2 {[%clk 0:00:15.3]} 69. Re2 {[%clk 0:00:06.6]} 69... Ra3
{[%clk 0:00:13.3]} 70. Re6 {[%clk 0:00:04.8]} 70... f5 {[%clk 0:00:12.9]} 71.
Rxd6 {[%clk 0:00:03.8]} 71... f4 {[%clk 0:00:12.9]} 72. Rg6 {[%clk 0:00:03.7]}
72... Ra2 {[%clk 0:00:11.5]} 73. Be6 {[%clk 0:00:03.4]} 73... Rf2+ {[%clk
0:00:10.2]} 74. Ke1 {[%clk 0:00:02.8]} 74... Rxg2 {[%clk 0:00:10.3]} 75. Bxg4
{[%clk 0:00:02.8]} 75... Kh2 {[%clk 0:00:09.8]} 76. Bf5 {[%clk 0:00:02]} 76...
Rxg6 {[%clk 0:00:09]} 77. Bxg6 {[%clk 0:00:02.7]} 77... Kg2 {[%clk 0:00:09.1]}
78. Be4+ {[%clk 0:00:03.2]} 78... f3 {[%clk 0:00:09.6]} 79. b4 {[%clk
0:00:02.4]} 79... cxb4 {[%clk 0:00:07.5]} 80. Kd2 {[%clk 0:00:03]} 80... Bc5
{[%clk 0:00:08.1]} 81. Kd3 {[%clk 0:00:03.5]} 81... h3 {[%clk 0:00:08.5]} 0-1

[Event "Late-Titled-Tuesday-Blitz-August-29-2023"]
[Site "Chess.com"]
[Date "2023.08.29"]
[Round "1"]
[White "MikeSailer"]
[Black "Aureliano-Buendia"]
[Result "0-1"]
[WhiteElo "2165"]
[BlackElo "2548"]
[TimeControl "180+1"]
[EndTime "14:09:40 PDT"]
[Termination "Aureliano-Buendia won on time"]

1. d4 {[%clk 0:03:00]} 1... d5 {[%clk 0:02:58]} 2. Bf4 {[%clk 0:02:59.1]} 2...
Nf6 {[%clk 0:02:54]} 3. Nc3 {[%clk 0:02:59]} 3... a6 {[%clk 0:02:47.9]} 4. e3
{[%clk 0:02:57.4]} 4... c5 {[%clk 0:02:41.6]} 5. dxc5 {[%clk 0:02:39.8]} 5... e6
{[%clk 0:02:38.5]} 6. Na4 {[%clk 0:02:34.6]} 6... Nbd7 {[%clk 0:02:36]} 7. b4
{[%clk 0:02:29.1]} 7... Be7 {[%clk 0:02:34.4]} 8. Nf3 {[%clk 0:02:26.9]} 8...
O-O {[%clk 0:02:34.8]} 9. Bd3 {[%clk 0:02:17.7]} 9... Nh5 {[%clk 0:02:21.4]} 10.
O-O {[%clk 0:02:09]} 10... Nxf4 {[%clk 0:02:20.9]} 11. exf4 {[%clk 0:02:08.8]}
11... a5 {[%clk 0:02:10.9]} 12. c3 {[%clk 0:01:58.7]} 12... axb4 {[%clk
0:02:09.8]} 13. cxb4 {[%clk 0:01:58.6]} 13... Bf6 {[%clk 0:02:10.7]} 14. Rb1
{[%clk 0:01:56.7]} 14... e5 {[%clk 0:01:58.7]} 15. fxe5 {[%clk 0:01:51.1]} 15...
Nxe5 {[%clk 0:01:59.6]} 16. Nxe5 {[%clk 0:01:51.5]} 16... Bxe5 {[%clk
0:01:59.7]} 17. Nb6 {[%clk 0:01:15.3]} 17... Rxa2 {[%clk 0:01:55.9]} 18. Bxh7+
{[%clk 0:01:01]} 18... Kxh7 {[%clk 0:01:55.8]} 19. Qh5+ {[%clk 0:01:00]} 19...
Kg8 {[%clk 0:01:55.6]} 20. Qxe5 {[%clk 0:01:00.7]} 20... Be6 {[%clk 0:01:42.2]}
21. Rfd1 {[%clk 0:00:54.4]} 21... Re8 {[%clk 0:01:39.8]} 22. Qd4 {[%clk
0:00:35]} 22... Qg5 {[%clk 0:01:35.2]} 23. Rb3 {[%clk 0:00:20.1]} 23... f6
{[%clk 0:01:27.7]} 24. Rg3 {[%clk 0:00:18.9]} 24... Qh5 {[%clk 0:01:27.6]} 25.
Re1 {[%clk 0:00:17.6]} 25... Kf7 {[%clk 0:01:25.6]} 26. h3 {[%clk 0:00:17.8]}
26... Re2 {[%clk 0:01:12.8]} 27. Rxe2 {[%clk 0:00:17]} 27... Qxe2 {[%clk
0:01:13.7]} 28. Qe3 {[%clk 0:00:15.3]} 28... Qd1+ {[%clk 0:01:08.3]} 29. Kh2
{[%clk 0:00:14.6]} 29... Bxh3 {[%clk 0:01:06.5]} 30. Qd3 {[%clk 0:00:07.3]}
30... Qxd3 {[%clk 0:00:58.4]} 31. Rxd3 {[%clk 0:00:08]} 31... Be6 {[%clk
0:00:57.2]} 32. Nxd5 {[%clk 0:00:08.5]} 32... Rh8+ {[%clk 0:00:53.6]} 33. Kg3
{[%clk 0:00:08.3]} 33... Rh1 {[%clk 0:00:50.6]} 34. Nf4 {[%clk 0:00:07.7]} 34...
Rb1 {[%clk 0:00:49.5]} 35. Nxe6 {[%clk 0:00:07.8]} 35... Kxe6 {[%clk 0:00:50.4]}
36. Rd4 {[%clk 0:00:07.8]} 36... Rb3+ {[%clk 0:00:48.2]} 37. f3 {[%clk
0:00:08.2]} 37... g5 {[%clk 0:00:46.8]} 38. Kg4 {[%clk 0:00:07.7]} 38... Rb2
{[%clk 0:00:35.5]} 39. g3 {[%clk 0:00:08.6]} 39... Rb3 {[%clk 0:00:34.2]} 40.
Re4+ {[%clk 0:00:08.8]} 40... Kf7 {[%clk 0:00:34.4]} 41. Rd4 {[%clk 0:00:08.5]}
41... Kg6 {[%clk 0:00:34.2]} 42. Rc4 {[%clk 0:00:08.2]} 42... f5+ {[%clk
0:00:33.8]} 43. Kh3 {[%clk 0:00:08.4]} 43... Rxf3 {[%clk 0:00:34.4]} 44. b5
{[%clk 0:00:09.1]} 44... Re3 {[%clk 0:00:25]} 45. c6 {[%clk 0:00:09.3]} 45...
bxc6 {[%clk 0:00:25.5]} 46. bxc6 {[%clk 0:00:09.1]} 46... Re8 {[%clk 0:00:26.1]}
47. c7 {[%clk 0:00:09.7]} 47... Rc8 {[%clk 0:00:25.6]} 48. g4 {[%clk 0:00:09.4]}
48... f4 {[%clk 0:00:24.8]} 49. Rc5 {[%clk 0:00:08.3]} 49... Kf6 {[%clk
0:00:23.9]} 50. Kg2 {[%clk 0:00:08.7]} 50... Ke6 {[%clk 0:00:22.8]} 51. Rxg5
{[%clk 0:00:08.4]} 51... Rxc7 {[%clk 0:00:22.7]} 52. Rf5 {[%clk 0:00:09]} 52...
Rg7 {[%clk 0:00:16.6]} 53. Rxf4 {[%clk 0:00:09]} 53... Ke5 {[%clk 0:00:17.5]}
54. Ra4 {[%clk 0:00:09.3]} 54... Kf6 {[%clk 0:00:16.6]} 55. Kg3 {[%clk
0:00:09.5]} 55... Kg5 {[%clk 0:00:16.8]} 56. Ra5+ {[%clk 0:00:07.1]} 56... Kg6
{[%clk 0:00:17.4]} 57. Kf4 {[%clk 0:00:06.9]} 57... Rb7 {[%clk 0:00:17.6]} 58.
Ra6+ {[%clk 0:00:06.4]} 58... Kg7 {[%clk 0:00:17.6]} 59. Kg5 {[%clk 0:00:06.6]}
59... Rc7 {[%clk 0:00:17.7]} 60. Kh5 {[%clk 0:00:05.8]} 60... Rb7 {[%clk
0:00:17.9]} 61. g5 {[%clk 0:00:06.4]} 61... Rc7 {[%clk 0:00:18.5]} 62. Rb6
{[%clk 0:00:05.5]} 62... Ra7 {[%clk 0:00:18.7]} 63. Rc6 {[%clk 0:00:06.3]} 63...
Rb7 {[%clk 0:00:19.1]} 64. Rg6+ {[%clk 0:00:04.7]} 64... Kh7 {[%clk 0:00:18.5]}
65. Rh6+ {[%clk 0:00:05.3]} 65... Kg7 {[%clk 0:00:19.1]} 66. Rg6+ {[%clk
0:00:05.7]} 66... Kh7 {[%clk 0:00:18]} 67. Rc6 {[%clk 0:00:06.4]} 67... Kg7
{[%clk 0:00:17.9]} 68. g6 {[%clk 0:00:05.2]} 68... Ra7 {[%clk 0:00:17.3]} 69.
Rd6 {[%clk 0:00:02.8]} 69... Ra5+ {[%clk 0:00:16.6]} 70. Kg4 {[%clk 0:00:03.2]}
70... Kh6 {[%clk 0:00:17.1]} 71. Rc6 {[%clk 0:00:04]} 71... Rb5 {[%clk
0:00:16.8]} 72. Rd6 {[%clk 0:00:04.1]} 72... Rc5 {[%clk 0:00:17]} 73. Rb6 {[%clk
0:00:03.3]} 73... Rc1 {[%clk 0:00:15.5]} 74. Ra6 {[%clk 0:00:02.5]} 74... Rb1
{[%clk 0:00:15.1]} 75. Rc6 {[%clk 0:00:03.2]} 75... Rd1 {[%clk 0:00:14.8]} 76.
Rb6 {[%clk 0:00:03.7]} 76... Rc1 {[%clk 0:00:15.5]} 77. Ra6 {[%clk 0:00:04.4]}
77... Rc4+ {[%clk 0:00:16]} 78. Kf5 {[%clk 0:00:04.6]} 78... Rc1 {[%clk
0:00:16]} 79. Kf6 {[%clk 0:00:05.2]} 79... Rf1+ {[%clk 0:00:16]} 80. Ke7 {[%clk
0:00:05.5]} 80... Kg7 {[%clk 0:00:16.7]} 81. Ra7 {[%clk 0:00:05.3]} 81... Kxg6
{[%clk 0:00:15.8]} 82. Ra6+ {[%clk 0:00:05.6]} 82... Kg7 {[%clk 0:00:16.2]} 83.
Ke6 {[%clk 0:00:04.3]} 83... Rf6+ {[%clk 0:00:15.6]} 0-1

[Event "Late-Titled-Tuesday-Blitz-August-29-2023"]
[Site "Chess.com"]
[Date "2023.08.29"]
[Round "1"]
[White "Zavgorodniy_Sergiy"]
[Black "matagordo"]
[Result "0-1"]
[WhiteElo "2532"]
[BlackElo "2179"]
[TimeControl "180+1"]
[EndTime "14:09:59 PDT"]
[Termination "matagordo won by checkmate"]

1. d4 {[%clk 0:02:56.9]} 1... e6 {[%clk 0:02:59]} 2. c4 {[%clk 0:02:51.7]} 2...
Nf6 {[%clk 0:02:59.1]} 3. Nf3 {[%clk 0:02:50.5]} 3... Bb4+ {[%clk 0:02:58.7]} 4.
Nbd2 {[%clk 0:02:47.9]} 4... O-O {[%clk 0:02:52.3]} 5. g3 {[%clk 0:02:46.4]}
5... d6 {[%clk 0:02:48.5]} 6. Bg2 {[%clk 0:02:45.9]} 6... Qe7 {[%clk 0:02:48.8]}
7. O-O {[%clk 0:02:44.4]} 7... Nc6 {[%clk 0:02:49]} 8. Qc2 {[%clk 0:02:37.5]}
8... Bxd2 {[%clk 0:02:44.2]} 9. Bxd2 {[%clk 0:02:35.5]} 9... e5 {[%clk
0:02:44.3]} 10. d5 {[%clk 0:02:33.1]} 10... Nb8 {[%clk 0:02:44.6]} 11. e4 {[%clk
0:02:32.6]} 11... a5 {[%clk 0:02:42.7]} 12. Ne1 {[%clk 0:02:31.5]} 12... Re8
{[%clk 0:02:33.8]} 13. Nd3 {[%clk 0:02:30.2]} 13... Nbd7 {[%clk 0:02:19.7]} 14.
b3 {[%clk 0:02:28.9]} 14... b6 {[%clk 0:02:17.1]} 15. a3 {[%clk 0:02:27.3]}
15... Nc5 {[%clk 0:02:15.3]} 16. Rfe1 {[%clk 0:02:24.6]} 16... Bd7 {[%clk
0:02:09.1]} 17. b4 {[%clk 0:02:23.6]} 17... Nb7 {[%clk 0:01:59.4]} 18. Rab1
{[%clk 0:02:17.9]} 18... axb4 {[%clk 0:01:52.5]} 19. axb4 {[%clk 0:02:18.8]}
19... Ra4 {[%clk 0:01:42.6]} 20. Ra1 {[%clk 0:02:13.3]} 20... Rea8 {[%clk
0:01:42.7]} 21. Rxa4 {[%clk 0:02:12.3]} 21... Rxa4 {[%clk 0:01:43.5]} 22. Bc3
{[%clk 0:02:06]} 22... Qe8 {[%clk 0:01:35.3]} 23. Ra1 {[%clk 0:02:05.2]} 23...
Qa8 {[%clk 0:01:35.4]} 24. Rxa4 {[%clk 0:02:03.5]} 24... Qxa4 {[%clk 0:01:35.8]}
25. Qxa4 {[%clk 0:02:03.1]} 25... Bxa4 {[%clk 0:01:36.7]} 26. Nb2 {[%clk
0:01:59]} 26... Bc2 {[%clk 0:01:34.7]} 27. f3 {[%clk 0:01:58.2]} 27... Nd7
{[%clk 0:01:33.4]} 28. Kf2 {[%clk 0:01:55.9]} 28... f5 {[%clk 0:01:33.4]} 29.
Ke3 {[%clk 0:01:53.5]} 29... fxe4 {[%clk 0:01:32.1]} 30. fxe4 {[%clk 0:01:53.8]}
30... Nf6 {[%clk 0:01:22.2]} 31. Bf3 {[%clk 0:01:51.3]} 31... g5 {[%clk
0:01:11.4]} 32. h3 {[%clk 0:01:50.1]} 32... h5 {[%clk 0:01:09.4]} 33. g4 {[%clk
0:01:47.1]} 33... h4 {[%clk 0:01:06.8]} 34. Nd3 {[%clk 0:01:42.2]} 34... Bb3
{[%clk 0:00:51.4]} 35. c5 {[%clk 0:01:27.5]} 35... bxc5 {[%clk 0:00:44.1]} 36.
bxc5 {[%clk 0:01:28.4]} 36... Bc4 {[%clk 0:00:40.9]} 37. c6 {[%clk 0:01:23.7]}
37... Nd8 {[%clk 0:00:33.7]} 38. Ba5 {[%clk 0:01:21.6]} 38... Ne8 {[%clk
0:00:31.8]} 39. Nb4 {[%clk 0:01:18.4]} 39... Bf1 {[%clk 0:00:28.2]} 40. Kf2
{[%clk 0:01:12.2]} 40... Bxh3 {[%clk 0:00:25.6]} 41. Na6 {[%clk 0:01:12]} 41...
Nf7 {[%clk 0:00:16.6]} 42. Nxc7 {[%clk 0:01:10.9]} 42... Kf8 {[%clk 0:00:11.5]}
43. Ne6+ {[%clk 0:00:50]} 43... Ke7 {[%clk 0:00:09.4]} 44. Be2 {[%clk 0:00:48]}
44... Nh6 {[%clk 0:00:08.3]} 45. c7 {[%clk 0:00:44.9]} 45... Nxc7 {[%clk
0:00:07.4]} 46. Bxc7 {[%clk 0:00:40.8]} 46... Nxg4+ {[%clk 0:00:06.2]} 47. Bxg4
{[%clk 0:00:27.8]} 47... Bxg4 {[%clk 0:00:07.1]} 48. Bd8+ {[%clk 0:00:27.3]}
48... Kd7 {[%clk 0:00:04.3]} 49. Bxg5 {[%clk 0:00:27.1]} 49... h3 {[%clk
0:00:02.5]} 50. Ng7 {[%clk 0:00:24.1]} 50... Bd1 {[%clk 0:00:01.4]} 51. Nh5
{[%clk 0:00:23]} 51... Bxh5 {[%clk 0:00:01.1]} 52. Kg3 {[%clk 0:00:23]} 52...
Bd1 {[%clk 0:00:01.4]} 53. Kxh3 {[%clk 0:00:21.4]} 53... Bc2 {[%clk 0:00:02.2]}
54. Kg3 {[%clk 0:00:21.5]} 54... Bxe4 {[%clk 0:00:02.8]} 55. Kf2 {[%clk
0:00:21.8]} 55... Bxd5 {[%clk 0:00:03.7]} 56. Ke3 {[%clk 0:00:21.9]} 56... Ke6
{[%clk 0:00:04.6]} 57. Kd3 {[%clk 0:00:21.9]} 57... Bc6 {[%clk 0:00:05.3]} 58.
Bh6 {[%clk 0:00:21.7]} 58... Be8 {[%clk 0:00:05.5]} 59. Ke3 {[%clk 0:00:21.7]}
59... Bg6 {[%clk 0:00:06.2]} 60. Kd2 {[%clk 0:00:21.7]} 60... Kd5 {[%clk
0:00:06.9]} 61. Ke3 {[%clk 0:00:22]} 61... Ke6 {[%clk 0:00:06.9]} 62. Bf8 {[%clk
0:00:21.9]} 62... d5 {[%clk 0:00:06.8]} 63. Bg7 {[%clk 0:00:21.8]} 63... d4+
{[%clk 0:00:06.9]} 64. Kd2 {[%clk 0:00:21.2]} 64... Kd5 {[%clk 0:00:07.5]} 65.
Bf6 {[%clk 0:00:20.9]} 65... Ke4 {[%clk 0:00:07.5]} 66. Ke2 {[%clk 0:00:20.7]}
66... Bh5+ {[%clk 0:00:08.1]} 67. Kd2 {[%clk 0:00:20.8]} 67... Bg4 {[%clk
0:00:07.9]} 68. Bg7 {[%clk 0:00:20.6]} 68... Bf3 {[%clk 0:00:07.9]} 69. Bf6
{[%clk 0:00:20.4]} 69... Bg2 {[%clk 0:00:08.4]} 70. Bg7 {[%clk 0:00:20.7]} 70...
Bf1 {[%clk 0:00:09]} 71. Bf6 {[%clk 0:00:21]} 71... Bb5 {[%clk 0:00:09.5]} 72.
Bg7 {[%clk 0:00:21.4]} 72... Kd5 {[%clk 0:00:09.6]} 73. Bh8 {[%clk 0:00:21.5]}
73... e4 {[%clk 0:00:10.2]} 74. Bg7 {[%clk 0:00:21.6]} 74... e3+ {[%clk
0:00:10.8]} 75. Ke1 {[%clk 0:00:21.3]} 75... Ke4 {[%clk 0:00:11.4]} 76. Bf8
{[%clk 0:00:21.1]} 76... d3 {[%clk 0:00:11.1]} 77. Bb4 {[%clk 0:00:20.9]} 77...
Kf3 {[%clk 0:00:08.3]} 78. Ba5 {[%clk 0:00:20.7]} 78... Ke4 {[%clk 0:00:07.4]}
79. Bb4 {[%clk 0:00:20.7]} 79... Kd5 {[%clk 0:00:08.2]} 80. Ba5 {[%clk
0:00:20.9]} 80... Kc4 {[%clk 0:00:08.7]} 81. Kd1 {[%clk 0:00:19.2]} 81... Ba4+
{[%clk 0:00:09.4]} 82. Kc1 {[%clk 0:00:18.7]} 82... Kb3 {[%clk 0:00:06.7]} 83.
Be1 {[%clk 0:00:17.6]} 83... Bc6 {[%clk 0:00:06.7]} 84. Ba5 {[%clk 0:00:17]}
84... Bf3 {[%clk 0:00:07.2]} 85. Be1 {[%clk 0:00:16.8]} 85... Kc4 {[%clk
0:00:06]} 86. Ba5 {[%clk 0:00:16.6]} 86... Kd4 {[%clk 0:00:06.5]} 87. Bb6+
{[%clk 0:00:16.2]} 87... Ke4 {[%clk 0:00:06.6]} 88. Ba5 {[%clk 0:00:15.3]} 88...
Be2 {[%clk 0:00:04.9]} 89. Bb4 {[%clk 0:00:15.2]} 89... Kf3 {[%clk 0:00:05.4]}
90. Ba5 {[%clk 0:00:15.3]} 90... Kg2 {[%clk 0:00:05.3]} 91. Bb4 {[%clk
0:00:15.5]} 91... Kf2 {[%clk 0:00:05.5]} 92. Bc3 {[%clk 0:00:15.6]} 92... Kf3
{[%clk 0:00:04.4]} 93. Bb4 {[%clk 0:00:15.7]} 93... Bf1 {[%clk 0:00:04.7]} 94.
Ba5 {[%clk 0:00:15.5]} 94... Ke2 {[%clk 0:00:04.9]} 95. Bc3 {[%clk 0:00:14]}
95... d2+ {[%clk 0:00:05.3]} 96. Bxd2 {[%clk 0:00:14.2]} 96... exd2+ {[%clk
0:00:06.2]} 97. Kb2 {[%clk 0:00:14.4]} 97... d1=Q {[%clk 0:00:06.5]} 98. Ka3
{[%clk 0:00:14.5]} 98... Qb1 {[%clk 0:00:06.6]} 99. Ka4 {[%clk 0:00:13.9]} 99...
Kd3 {[%clk 0:00:07]} 100. Ka5 {[%clk 0:00:08.3]} 100... Kc4 {[%clk 0:00:06.8]}
101. Ka6 {[%clk 0:00:09.2]} 101... Kc5+ {[%clk 0:00:06.1]} 102. Ka7 {[%clk
0:00:10.1]} 102... Bh3 {[%clk 0:00:05.1]} 103. Ka8 {[%clk 0:00:11]} 103... Kc6
{[%clk 0:00:05.1]} 104. Ka7 {[%clk 0:00:11.9]} 104... Kc7 {[%clk 0:00:05.3]}
105. Ka8 {[%clk 0:00:12.7]} 105... Qb7# {[%clk 0:00:05.4]} 0-1

[Event "Late-Titled-Tuesday-Blitz-August-29-2023"]
[Site "Chess.com"]
[Date "2023.08.29"]
[Round "2"]
[White "jup1978"]
[Black "KVAIDAN"]
[Result "1-0"]
[WhiteElo "2503"]
[BlackElo "2313"]
[TimeControl "180+1"]
[EndTime "14:12:34 PDT"]
[Termination "jup1978 won by resignation"]

1. e4 {[%clk 0:03:00.9]} 1... e5 {[%clk 0:03:00.2]} 2. Nf3 {[%clk 0:03:00.6]}
2... d5 {[%clk 0:03:00.6]} 3. Nxe5 {[%clk 0:02:57.1]} 3... Bd6 {[%clk
0:03:00.3]} 4. d4 {[%clk 0:02:57.1]} 4... dxe4 {[%clk 0:03:00.3]} 5. Nc4 {[%clk
0:02:56.6]} 5... Nf6 {[%clk 0:03:00.1]} 6. Be2 {[%clk 0:02:56.1]} 6... Nc6
{[%clk 0:02:59]} 7. Nxd6+ {[%clk 0:02:55]} 7... Qxd6 {[%clk 0:02:59.1]} 8. Be3
{[%clk 0:02:54.7]} 8... Nd5 {[%clk 0:02:58.9]} 9. O-O {[%clk 0:02:47.9]} 9... f5
{[%clk 0:02:56.6]} 10. c4 {[%clk 0:02:43.6]} 10... Nxe3 {[%clk 0:02:53.3]} 11.
fxe3 {[%clk 0:02:44.5]} 11... O-O {[%clk 0:02:53.5]} 12. Nc3 {[%clk 0:02:43.9]}
12... Qh6 {[%clk 0:02:53.7]} 13. Qd2 {[%clk 0:02:38.1]} 13... Be6 {[%clk
0:02:48.1]} 14. d5 {[%clk 0:02:37.2]} 14... Rad8 {[%clk 0:02:48.3]} 15. Qc1
{[%clk 0:02:36.3]} 15... Ne5 {[%clk 0:02:40.3]} 16. dxe6 {[%clk 0:02:34.2]}
16... c6 {[%clk 0:02:40.8]} 17. e7 {[%clk 0:02:33]} 1-0

[Event "Late-Titled-Tuesday-Blitz-August-29-2023"]
[Site "Chess.com"]
[Date "2023.08.29"]
[Round "2"]
[White "Msb2"]
[Black "oskariot"]
[Result "1-0"]
[WhiteElo "3022"]
[BlackElo "2651"]
[TimeControl "180+1"]
[EndTime "14:14:05 PDT"]
[Termination "Msb2 won by resignation"]

1. d4 {[%clk 0:03:00.9]} 1... Nf6 {[%clk 0:02:59.9]} 2. c4 {[%clk 0:03:01.3]}
2... c5 {[%clk 0:02:59.3]} 3. d5 {[%clk 0:03:01.4]} 3... g6 {[%clk 0:02:59.9]}
4. Nc3 {[%clk 0:03:01.7]} 4... Bg7 {[%clk 0:03:00.6]} 5. e4 {[%clk 0:03:02.2]}
5... d6 {[%clk 0:03:01.3]} 6. h3 {[%clk 0:03:02.8]} 6... O-O {[%clk 0:03:01.7]}
7. Nf3 {[%clk 0:03:03.1]} 7... e6 {[%clk 0:03:01.7]} 8. Bd3 {[%clk 0:03:01.5]}
8... Na6 {[%clk 0:03:01.7]} 9. Be3 {[%clk 0:02:58.8]} 9... exd5 {[%clk
0:02:54.6]} 10. cxd5 {[%clk 0:02:59.7]} 10... Nc7 {[%clk 0:02:48.3]} 11. a4
{[%clk 0:02:58.2]} 11... b6 {[%clk 0:02:44.9]} 12. O-O {[%clk 0:02:57.9]} 12...
Re8 {[%clk 0:02:44.5]} 13. Nd2 {[%clk 0:02:57.9]} 13... Rb8 {[%clk 0:02:43.3]}
14. Bg5 {[%clk 0:02:57.4]} 14... h6 {[%clk 0:02:08.1]} 15. Bh4 {[%clk
0:02:57.2]} 15... Qd7 {[%clk 0:01:55.9]} 16. f4 {[%clk 0:02:54.4]} 16... Nh7
{[%clk 0:01:53.1]} 17. Qf3 {[%clk 0:02:47.7]} 17... Ba6 {[%clk 0:01:36.8]} 18.
Bxa6 {[%clk 0:02:42.7]} 18... Nxa6 {[%clk 0:01:37.7]} 19. Nc4 {[%clk 0:02:43]}
19... Bd4+ {[%clk 0:01:27.7]} 20. Kh1 {[%clk 0:02:40.6]} 20... Nb4 {[%clk
0:01:27.6]} 21. e5 {[%clk 0:02:40.2]} 21... dxe5 {[%clk 0:01:24.9]} 22. fxe5
{[%clk 0:02:41.1]} 22... Bxc3 {[%clk 0:01:25]} 23. bxc3 {[%clk 0:02:36.2]} 23...
Nxd5 {[%clk 0:01:25.1]} 24. Rad1 {[%clk 0:02:33.6]} 24... Rbd8 {[%clk
0:01:23.5]} 25. Bxd8 {[%clk 0:02:32.1]} 25... Rxd8 {[%clk 0:01:24.4]} 26. Ne3
{[%clk 0:02:31.5]} 1-0